[Event "Late-Titled-Tuesday-Blitz-March-26-2024"]
[Site "Chess.com"]
[Date "2024.03.26"]
[Round "2"]
[White "familijatop71"]
[Black "ATM622"]
[Result "0-1"]
[WhiteElo "2312"]
[BlackElo "2527"]
[TimeControl "180+1"]
[EndTime "14:19:21 PDT"]
[Termination "ATM622 won on time"]

1. e4 {[%clk 0:03:00.9]} 1... c6 {[%clk 0:02:59.8]} 2. d4 {[%clk 0:03:00.2]}
2... d5 {[%clk 0:02:58.6]} 3. e5 {[%clk 0:02:58.5]} 3... g6 {[%clk 0:02:53.7]}
4. h3 {[%clk 0:02:52.1]} 4... Bg7 {[%clk 0:02:53.2]} 5. Nf3 {[%clk 0:02:51.8]}
5... Bf5 {[%clk 0:02:51.2]} 6. Bd3 {[%clk 0:02:51]} 6... Bxd3 {[%clk 0:02:50.6]}
7. Qxd3 {[%clk 0:02:51.6]} 7... e6 {[%clk 0:02:48.4]} 8. O-O {[%clk 0:02:51.1]}
8... Ne7 {[%clk 0:02:47.5]} 9. Bg5 {[%clk 0:02:50.4]} 9... Nd7 {[%clk
0:02:46.6]} 10. Nbd2 {[%clk 0:02:46.7]} 10... O-O {[%clk 0:02:42.4]} 11. c3
{[%clk 0:02:29.1]} 11... Qe8 {[%clk 0:02:38.8]} 12. Rfe1 {[%clk 0:02:24.8]}
12... h6 {[%clk 0:02:35.6]} 13. Bh4 {[%clk 0:02:21.8]} 13... Nf5 {[%clk
0:02:34.2]} 14. Nf1 {[%clk 0:02:18.3]} 14... c5 {[%clk 0:02:21.1]} 15. Bg3
{[%clk 0:02:14.2]} 15... cxd4 {[%clk 0:02:16.9]} 16. cxd4 {[%clk 0:02:12.4]}
16... Nb6 {[%clk 0:02:11.2]} 17. b3 {[%clk 0:02:11.8]} 17... Rc8 {[%clk
0:02:09.8]} 18. Rac1 {[%clk 0:02:11.7]} 18... Qd7 {[%clk 0:02:03.6]} 19. Bh2
{[%clk 0:02:10.7]} 19... a5 {[%clk 0:01:59.1]} 20. g4 {[%clk 0:02:09.7]} 20...
Ne7 {[%clk 0:01:57.8]} 21. Nh4 {[%clk 0:02:05.4]} 21... Nc6 {[%clk 0:01:46.5]}
22. f4 {[%clk 0:02:02.3]} 22... Nb4 {[%clk 0:01:44.9]} 23. Qb1 {[%clk
0:01:55.7]} 23... Rxc1 {[%clk 0:01:40.3]} 24. Rxc1 {[%clk 0:01:55.2]} 24... Rc8
{[%clk 0:01:39.8]} 25. a3 {[%clk 0:01:44.7]} 25... Nc6 {[%clk 0:01:39.1]} 26.
Qd3 {[%clk 0:01:36.8]} 26... Qe7 {[%clk 0:01:36.7]} 27. Bg3 {[%clk 0:01:28.4]}
27... Qxa3 {[%clk 0:01:32]} 28. f5 {[%clk 0:01:28.6]} 28... Qxc1 {[%clk
0:01:24.5]} 29. fxe6 {[%clk 0:01:26.8]} 29... fxe6 {[%clk 0:01:17.6]} 30. Nxg6
{[%clk 0:01:22.6]} 30... Qb2 {[%clk 0:00:50.4]} 31. Bf2 {[%clk 0:01:16.8]} 31...
Nd7 {[%clk 0:00:40.7]} 32. Ng3 {[%clk 0:01:12.8]} 32... Nf8 {[%clk 0:00:27.2]}
33. Nh5 {[%clk 0:01:09]} 33... Re8 {[%clk 0:00:18.7]} 34. Nf6+ {[%clk
0:00:32.3]} 34... Bxf6 {[%clk 0:00:18.2]} 35. exf6 {[%clk 0:00:32.5]} 35... Qc1+
{[%clk 0:00:17.4]} 36. Kg2 {[%clk 0:00:30.5]} 36... Qg5 {[%clk 0:00:16.3]} 37.
Bh4 {[%clk 0:00:22.3]} 37... Qxg6 {[%clk 0:00:15.6]} 38. f7+ {[%clk 0:00:17.7]}
38... Kxf7 {[%clk 0:00:11.4]} 39. Qb5 {[%clk 0:00:17.5]} 39... Qe4+ {[%clk
0:00:10.6]} 40. Kg3 {[%clk 0:00:17.4]} 40... Kg8 {[%clk 0:00:07.9]} 41. Qxb7
{[%clk 0:00:17.3]} 41... Nxd4 {[%clk 0:00:06.8]} 42. Be7 {[%clk 0:00:13.6]}
42... Qf3+ {[%clk 0:00:06.1]} 43. Kh2 {[%clk 0:00:13.3]} 43... Ng6 {[%clk
0:00:04.7]} 0-1

[Event "Late-Titled-Tuesday-Blitz-March-26-2024"]
[Site "Chess.com"]
[Date "2024.03.26"]
[Round "2"]
[White "b_6"]
[Black "Heliosis11"]
[Result "0-1"]
[WhiteElo "2494"]
[BlackElo "2298"]
[TimeControl "180+1"]
[EndTime "14:19:28 PDT"]
[Termination "Heliosis11 won by resignation"]

1. d4 {[%clk 0:03:00.9]} 1... Nf6 {[%clk 0:02:58.3]} 2. c4 {[%clk 0:03:00.6]}
2... e6 {[%clk 0:02:57.5]} 3. Nc3 {[%clk 0:03:00.8]} 3... Bb4 {[%clk 0:02:57.2]}
4. Qc2 {[%clk 0:03:00.9]} 4... O-O {[%clk 0:02:51.5]} 5. Nf3 {[%clk 0:03:00.7]}
5... c5 {[%clk 0:02:49.7]} 6. dxc5 {[%clk 0:03:00.2]} 6... Na6 {[%clk
0:02:47.7]} 7. g3 {[%clk 0:03:00.2]} 7... Nxc5 {[%clk 0:02:48]} 8. Bg2 {[%clk
0:03:00.4]} 8... b6 {[%clk 0:02:36.4]} 9. O-O {[%clk 0:02:59.8]} 9... Bb7 {[%clk
0:02:36.7]} 10. Nb5 {[%clk 0:02:59.5]} 10... Nce4 {[%clk 0:02:19.3]} 11. a3
{[%clk 0:02:44.7]} 11... Be7 {[%clk 0:02:14.5]} 12. Ng5 {[%clk 0:02:28.2]} 12...
d5 {[%clk 0:02:10.2]} 13. Rd1 {[%clk 0:02:20.4]} 13... Rc8 {[%clk 0:02:07.5]}
14. Nxe4 {[%clk 0:02:10.9]} 14... Nxe4 {[%clk 0:01:45.9]} 15. Bxe4 {[%clk
0:02:10]} 15... Qe8 {[%clk 0:01:44.3]} 16. Bg2 {[%clk 0:01:57.2]} 16... Qxb5
{[%clk 0:01:34.7]} 17. b3 {[%clk 0:01:45.6]} 17... Qa6 {[%clk 0:01:22]} 18. Bb2
{[%clk 0:01:31.8]} 18... dxc4 {[%clk 0:01:18.1]} 19. Rd7 {[%clk 0:01:27.6]}
19... Bxg2 {[%clk 0:01:14.2]} 20. Kxg2 {[%clk 0:01:12.7]} 20... cxb3 {[%clk
0:01:01.8]} 21. Qxb3 {[%clk 0:01:11.3]} 21... Bg5 {[%clk 0:00:51]} 22. e3 {[%clk
0:01:07.1]} 22... Qe2 {[%clk 0:00:49.8]} 23. Bd4 {[%clk 0:00:39.4]} 23... Rc2
{[%clk 0:00:46]} 24. Rf1 {[%clk 0:00:39]} 24... e5 {[%clk 0:00:27.5]} 25. Bxe5
{[%clk 0:00:36.1]} 25... Bxe3 {[%clk 0:00:26.7]} 26. Qd3 {[%clk 0:00:32.9]}
26... Qxd3 {[%clk 0:00:21.2]} 27. Rxd3 {[%clk 0:00:33.2]} 27... Bc5 {[%clk
0:00:21.8]} 28. Rd7 {[%clk 0:00:30.9]} 28... Bxa3 {[%clk 0:00:18.1]} 29. Rxa7
{[%clk 0:00:30.4]} 29... Bc5 {[%clk 0:00:18.3]} 30. Rd7 {[%clk 0:00:25.1]} 30...
Rc8 {[%clk 0:00:18.4]} 31. Kh3 {[%clk 0:00:17]} 31... f6 {[%clk 0:00:18.3]} 32.
Bd4 {[%clk 0:00:16.1]} 32... Bxd4 {[%clk 0:00:17.9]} 33. Rxd4 {[%clk 0:00:17]}
33... b5 {[%clk 0:00:18.2]} 34. Rb1 {[%clk 0:00:16.7]} 34... R8c5 {[%clk
0:00:18.1]} 35. Rdb4 {[%clk 0:00:15.4]} 35... Rxf2 {[%clk 0:00:12.5]} 36. Rxb5
{[%clk 0:00:15.4]} 36... Rcc2 {[%clk 0:00:12]} 37. Rb8+ {[%clk 0:00:11.4]} 37...
Kf7 {[%clk 0:00:12.4]} 38. R8b7+ {[%clk 0:00:11.5]} 38... Kg6 {[%clk 0:00:12.4]}
39. R1b5 {[%clk 0:00:11.7]} 39... Rxh2+ {[%clk 0:00:12.5]} 40. Kg4 {[%clk
0:00:12.2]} 40... h5+ {[%clk 0:00:12.4]} 41. Kf3 {[%clk 0:00:12.7]} 41... Rc3+
{[%clk 0:00:12.8]} 42. Ke4 {[%clk 0:00:12.6]} 42... Rxg3 {[%clk 0:00:12.9]} 43.
Rc7 {[%clk 0:00:12.4]} 43... Rg4+ {[%clk 0:00:13.1]} 44. Kf3 {[%clk 0:00:12.4]}
44... Rh3+ {[%clk 0:00:13.8]} 45. Kf2 {[%clk 0:00:12.8]} 45... Rh2+ {[%clk
0:00:13.7]} 46. Kf3 {[%clk 0:00:13]} 46... Ra2 {[%clk 0:00:14.3]} 47. Rbb7
{[%clk 0:00:12.2]} 47... Ra3+ {[%clk 0:00:14.8]} 48. Kf2 {[%clk 0:00:12.3]}
48... Kh6 {[%clk 0:00:15.2]} 49. Rc8 {[%clk 0:00:11.9]} 49... g6 {[%clk
0:00:14.2]} 50. Rb5 {[%clk 0:00:11.3]} 50... f5 {[%clk 0:00:10.9]} 51. Rc6
{[%clk 0:00:08.4]} 51... h4 {[%clk 0:00:10.6]} 52. Rxf5 {[%clk 0:00:07.5]} 52...
h3 {[%clk 0:00:10.8]} 53. Rf3 {[%clk 0:00:06.4]} 53... Rg2+ {[%clk 0:00:10.1]}
0-1

[Event "Late-Titled-Tuesday-Blitz-March-26-2024"]
[Site "Chess.com"]
[Date "2024.03.26"]
[Round "2"]
[White "norwaytoadog"]
[Black "Josetricks"]
[Result "0-1"]
[WhiteElo "2390"]
[BlackElo "2695"]
[TimeControl "180+1"]
[EndTime "14:19:29 PDT"]
[Termination "Josetricks won on time"]

1. e4 {[%clk 0:02:59.3]} 1... g6 {[%clk 0:03:00.9]} 2. d4 {[%clk 0:02:58.9]}
2... Bg7 {[%clk 0:03:01.8]} 3. Nc3 {[%clk 0:02:59.2]} 3... c6 {[%clk 0:03:02]}
4. h3 {[%clk 0:02:56.6]} 4... d5 {[%clk 0:03:02.3]} 5. Nf3 {[%clk 0:02:55]} 5...
dxe4 {[%clk 0:03:02.6]} 6. Nxe4 {[%clk 0:02:55.4]} 6... Nf6 {[%clk 0:03:03.5]}
7. Nxf6+ {[%clk 0:02:54.1]} 7... exf6 {[%clk 0:03:04.4]} 8. Bc4 {[%clk
0:02:52.3]} 8... O-O {[%clk 0:03:04.8]} 9. O-O {[%clk 0:02:52]} 9... a5 {[%clk
0:03:05.7]} 10. Bf4 {[%clk 0:02:48.4]} 10... Na6 {[%clk 0:03:05.4]} 11. c3
{[%clk 0:02:47.3]} 11... Nc7 {[%clk 0:03:05.3]} 12. a4 {[%clk 0:02:46]} 12...
Nd5 {[%clk 0:03:05.3]} 13. Bd2 {[%clk 0:02:43.6]} 13... Be6 {[%clk 0:03:04.6]}
14. Bd3 {[%clk 0:02:42.9]} 14... Re8 {[%clk 0:03:04.3]} 15. Qc2 {[%clk
0:02:39.3]} 15... Bf8 {[%clk 0:03:00.2]} 16. Rfe1 {[%clk 0:02:35.9]} 16... Bd6
{[%clk 0:02:59.6]} 17. Re2 {[%clk 0:02:30.6]} 17... Qd7 {[%clk 0:02:58.6]} 18.
Rae1 {[%clk 0:02:11.8]} 18... Nf4 {[%clk 0:02:58]} 19. Bxf4 {[%clk 0:02:08.6]}
19... Bxf4 {[%clk 0:02:58.9]} 20. c4 {[%clk 0:02:02.6]} 20... Kg7 {[%clk
0:02:51]} 21. Qc3 {[%clk 0:01:58.5]} 21... Red8 {[%clk 0:02:42]} 22. Rd1 {[%clk
0:01:53.7]} 22... h5 {[%clk 0:02:22.3]} 23. Be4 {[%clk 0:01:48.8]} 23... Bf5
{[%clk 0:02:03.3]} 24. d5 {[%clk 0:01:39.5]} 24... Bxe4 {[%clk 0:01:58.2]} 25.
Rxe4 {[%clk 0:01:39.3]} 25... Qf5 {[%clk 0:01:55.2]} 26. Qd4 {[%clk 0:01:30.5]}
26... Bc7 {[%clk 0:01:49.6]} 27. Nh4 {[%clk 0:01:20.5]} 27... Qg5 {[%clk
0:01:44.9]} 28. Nf3 {[%clk 0:01:16.1]} 28... Qf5 {[%clk 0:01:45]} 29. Nh4 {[%clk
0:01:14.5]} 29... Qd7 {[%clk 0:01:40.3]} 30. Rd3 {[%clk 0:01:11.9]} 30... cxd5
{[%clk 0:01:26.7]} 31. cxd5 {[%clk 0:01:09.7]} 31... Ra6 {[%clk 0:01:27.3]} 32.
g4 {[%clk 0:00:58.1]} 32... hxg4 {[%clk 0:01:20.2]} 33. Rxg4 {[%clk 0:00:57.5]}
33... Be5 {[%clk 0:01:18]} 34. Qe4 {[%clk 0:00:53.5]} 34... Rh8 {[%clk
0:01:08.3]} 35. f4 {[%clk 0:00:40.5]} 35... Bxb2 {[%clk 0:00:57.6]} 36. Rdg3
{[%clk 0:00:27]} 36... Qc7 {[%clk 0:00:42.9]} 37. Rxg6+ {[%clk 0:00:14.5]} 37...
fxg6 {[%clk 0:00:40.3]} 38. Qxg6+ {[%clk 0:00:11.8]} 38... Kf8 {[%clk 0:00:40]}
39. Nf5 {[%clk 0:00:10.7]} 39... Qc1+ {[%clk 0:00:29.2]} 40. Kh2 {[%clk
0:00:09.4]} 40... Qd2+ {[%clk 0:00:28.5]} 41. Kg1 {[%clk 0:00:07.6]} 41... Qe1+
{[%clk 0:00:26.7]} 42. Kg2 {[%clk 0:00:07.8]} 42... Qd2+ {[%clk 0:00:16.9]} 43.
Kg1 {[%clk 0:00:06.9]} 43... Bd4+ {[%clk 0:00:16.6]} 44. Nxd4 {[%clk 0:00:06.2]}
44... Qxd4+ {[%clk 0:00:17.5]} 45. Kg2 {[%clk 0:00:05.9]} 45... Qxd5+ {[%clk
0:00:16.8]} 46. Kh2 {[%clk 0:00:05.7]} 46... Qf7 {[%clk 0:00:17.3]} 47. Qe4
{[%clk 0:00:04.5]} 47... Re6 {[%clk 0:00:16.8]} 48. Qd4 {[%clk 0:00:03.7]} 48...
Re2+ {[%clk 0:00:16.1]} 49. Kg1 {[%clk 0:00:02.1]} 49... Re8 {[%clk 0:00:14.1]}
50. Qd6+ {[%clk 0:00:01.7]} 50... Qe7 {[%clk 0:00:13.5]} 0-1

[Event "Late-Titled-Tuesday-Blitz-March-26-2024"]
[Site "Chess.com"]
[Date "2024.03.26"]
[Round "2"]
[White "ImportedItalianMaple"]
[Black "stepanosinovsky"]
[Result "0-1"]
[WhiteElo "2519"]
[BlackElo "2378"]
[TimeControl "180+1"]
[EndTime "14:19:31 PDT"]
[Termination "stepanosinovsky won on time"]

1. Nf3 {[%clk 0:03:00.9]} 1... Nf6 {[%clk 0:03:00.9]} 2. g3 {[%clk 0:03:00.8]}
2... g6 {[%clk 0:03:01.7]} 3. Bg2 {[%clk 0:03:01.3]} 3... Bg7 {[%clk 0:03:02.6]}
4. O-O {[%clk 0:03:01.3]} 4... O-O {[%clk 0:03:03.5]} 5. d4 {[%clk 0:03:01.7]}
5... d6 {[%clk 0:03:03.7]} 6. c4 {[%clk 0:03:02]} 6... Nbd7 {[%clk 0:03:04.1]}
7. Nc3 {[%clk 0:03:02.4]} 7... e5 {[%clk 0:03:04.9]} 8. e4 {[%clk 0:03:02.7]}
8... c6 {[%clk 0:03:04.3]} 9. h3 {[%clk 0:03:02.2]} 9... Qb6 {[%clk 0:03:03.2]}
10. c5 {[%clk 0:03:00.7]} 10... dxc5 {[%clk 0:03:03.1]} 11. dxe5 {[%clk
0:03:01.6]} 11... Ne8 {[%clk 0:03:01.7]} 12. e6 {[%clk 0:02:59.6]} 12... fxe6
{[%clk 0:03:01.3]} 13. Ng5 {[%clk 0:03:00.2]} 13... Ne5 {[%clk 0:02:55.1]} 14.
f4 {[%clk 0:02:59.1]} 14... c4+ {[%clk 0:02:53.3]} 15. Kh2 {[%clk 0:02:57.9]}
15... Nd3 {[%clk 0:02:53.9]} 16. e5 {[%clk 0:02:47.7]} 16... Nxb2 {[%clk
0:02:04.5]} 17. Qe2 {[%clk 0:02:32.4]} 17... Nd3 {[%clk 0:02:00.9]} 18. Be3
{[%clk 0:02:32.6]} 18... Qa5 {[%clk 0:02:00.2]} 19. Nce4 {[%clk 0:02:26.3]}
19... Bd7 {[%clk 0:01:43.1]} 20. Qc2 {[%clk 0:02:22.5]} 20... b5 {[%clk
0:01:37.9]} 21. Nc5 {[%clk 0:02:20.6]} 21... Qc7 {[%clk 0:01:29.9]} 22. Nxd3
{[%clk 0:02:17.1]} 22... cxd3 {[%clk 0:01:29.5]} 23. Qxd3 {[%clk 0:02:18]} 23...
Rd8 {[%clk 0:01:16.6]} 24. Rfd1 {[%clk 0:02:11.1]} 24... c5 {[%clk 0:01:02.6]}
25. Nxe6 {[%clk 0:02:05.3]} 25... Bxe6 {[%clk 0:00:55.4]} 26. Qxd8 {[%clk
0:02:06.2]} 26... c4 {[%clk 0:00:26.8]} 27. Qxc7 {[%clk 0:01:44.8]} 27... Nxc7
{[%clk 0:00:27.7]} 28. Bxa7 {[%clk 0:01:45.4]} 28... Rc8 {[%clk 0:00:27]} 29.
Bb6 {[%clk 0:01:39.3]} 29... Bf8 {[%clk 0:00:20.2]} 30. Bxc7 {[%clk 0:01:31.6]}
30... Rxc7 {[%clk 0:00:20.3]} 31. Bd5 {[%clk 0:01:32.5]} 31... Kf7 {[%clk
0:00:17.9]} 32. Kg2 {[%clk 0:01:27.6]} 32... b4 {[%clk 0:00:16.8]} 33. Kf3
{[%clk 0:01:25.9]} 33... c3 {[%clk 0:00:16]} 34. Bb3 {[%clk 0:01:12.4]} 34...
Bc5 {[%clk 0:00:13.9]} 35. Rac1 {[%clk 0:01:03.9]} 35... Ra7 {[%clk 0:00:12.5]}
36. Ke4 {[%clk 0:00:55.7]} 36... Rxa2 {[%clk 0:00:12.8]} 37. Rd7+ {[%clk
0:00:49.9]} 37... Be7 {[%clk 0:00:12.3]} 38. Bxa2 {[%clk 0:00:31.7]} 38... Bxa2
{[%clk 0:00:13.2]} 39. Ra1 {[%clk 0:00:30.8]} 39... b3 {[%clk 0:00:12.6]} 40.
Rb7 {[%clk 0:00:16.2]} 40... c2 {[%clk 0:00:12.3]} 41. Kd3 {[%clk 0:00:10.5]}
41... Ke6 {[%clk 0:00:08.1]} 42. Ra7 {[%clk 0:00:07.4]} 42... b2 {[%clk
0:00:05.8]} 43. Ra6+ {[%clk 0:00:06.1]} 43... Kf7 {[%clk 0:00:05.8]} 44. R6xa2
{[%clk 0:00:03.9]} 44... c1=Q {[%clk 0:00:04.3]} 0-1

[Event "Late-Titled-Tuesday-Blitz-March-26-2024"]
[Site "Chess.com"]
[Date "2024.03.26"]
[Round "2"]
[White "Kosak12"]
[Black "Nf3c5"]
[Result "0-1"]
[WhiteElo "2781"]
[BlackElo "2558"]
[TimeControl "180+1"]
[EndTime "14:19:36 PDT"]
[Termination "Nf3c5 won by resignation"]

1. b4 {[%clk 0:02:52.7]} 1... e5 {[%clk 0:02:55.6]} 2. Bb2 {[%clk 0:02:52.3]}
2... Bxb4 {[%clk 0:02:55.6]} 3. Bxe5 {[%clk 0:02:52.5]} 3... Nf6 {[%clk
0:02:56.1]} 4. e3 {[%clk 0:02:50.8]} 4... d5 {[%clk 0:02:53.2]} 5. Nf3 {[%clk
0:02:48.8]} 5... O-O {[%clk 0:02:52.2]} 6. c3 {[%clk 0:02:48.5]} 6... Ba5 {[%clk
0:02:44.3]} 7. Bxf6 {[%clk 0:02:45.8]} 7... Qxf6 {[%clk 0:02:43.5]} 8. d4 {[%clk
0:02:46.1]} 8... c5 {[%clk 0:02:41.6]} 9. Be2 {[%clk 0:02:20.2]} 9... Nc6 {[%clk
0:02:37.8]} 10. O-O {[%clk 0:02:18.1]} 10... c4 {[%clk 0:02:29.3]} 11. e4 {[%clk
0:02:09.9]} 11... dxe4 {[%clk 0:02:24.3]} 12. Nfd2 {[%clk 0:02:10]} 12... Qg6
{[%clk 0:02:16]} 13. Nxc4 {[%clk 0:02:09.5]} 13... Bh3 {[%clk 0:02:13.9]} 14.
Ne3 {[%clk 0:02:06.5]} 14... Bc7 {[%clk 0:02:04.9]} 15. Nd2 {[%clk 0:01:57.3]}
15... Qd6 {[%clk 0:01:55.6]} 16. f4 {[%clk 0:01:48.3]} 16... exf3 {[%clk
0:01:51.1]} 17. Nxf3 {[%clk 0:01:48.4]} 17... Bd7 {[%clk 0:01:35.1]} 18. Bd3
{[%clk 0:01:44.8]} 18... g6 {[%clk 0:01:02.7]} 19. g3 {[%clk 0:01:39.1]} 19...
Rae8 {[%clk 0:01:01.7]} 20. Qd2 {[%clk 0:01:33]} 20... Bh3 {[%clk 0:01:00.2]}
21. Rfe1 {[%clk 0:01:27.8]} 21... a6 {[%clk 0:00:58.7]} 22. Ng5 {[%clk
0:01:19.8]} 22... Bc8 {[%clk 0:00:53.1]} 23. Rf1 {[%clk 0:01:05.4]} 23... Nxd4
{[%clk 0:00:45.6]} 24. Nxf7 {[%clk 0:00:19.7]} 24... Rxf7 {[%clk 0:00:33.4]} 25.
Rxf7 {[%clk 0:00:19.6]} 25... Kxf7 {[%clk 0:00:31]} 26. cxd4 {[%clk 0:00:20]}
26... Bb6 {[%clk 0:00:25]} 27. Rf1+ {[%clk 0:00:18.8]} 27... Kg7 {[%clk
0:00:24.7]} 28. Nc4 {[%clk 0:00:16]} 28... Qxd4+ {[%clk 0:00:23.7]} 29. Kg2
{[%clk 0:00:11.3]} 29... Qd5+ {[%clk 0:00:16.6]} 30. Rf3 {[%clk 0:00:06.4]}
30... Bg4 {[%clk 0:00:12.7]} 31. Qf4 {[%clk 0:00:02.2]} 31... Bxf3+ {[%clk
0:00:07.5]} 32. Qxf3 {[%clk 0:00:03.1]} 32... Qxf3+ {[%clk 0:00:07.7]} 33. Kxf3
{[%clk 0:00:04]} 33... Bd4 {[%clk 0:00:08.2]} 34. Be4 {[%clk 0:00:02.8]} 34...
b5 {[%clk 0:00:07.8]} 35. Nd6 {[%clk 0:00:03.5]} 35... Rf8+ {[%clk 0:00:07.8]}
36. Ke2 {[%clk 0:00:02.9]} 36... Rf2+ {[%clk 0:00:07.2]} 37. Kd3 {[%clk
0:00:03.5]} 37... Be5 {[%clk 0:00:07.5]} 38. Ne8+ {[%clk 0:00:01.5]} 38... Kf8
{[%clk 0:00:07.1]} 39. Bc6 {[%clk 0:00:01.3]} 39... Rxa2 {[%clk 0:00:05.8]} 40.
Ke4 {[%clk 0:00:01.7]} 40... Bb8 {[%clk 0:00:05.3]} 41. Nf6 {[%clk 0:00:01.6]}
41... Re2+ {[%clk 0:00:05.4]} 42. Kf3 {[%clk 0:00:01.5]} 42... Re6 {[%clk
0:00:05.3]} 43. Nd7+ {[%clk 0:00:01.6]} 43... Ke7 {[%clk 0:00:05.4]} 44. Nxb8
{[%clk 0:00:02.5]} 44... Kd6 {[%clk 0:00:04.7]} 45. Be4 {[%clk 0:00:02.8]} 45...
Kc7 {[%clk 0:00:03.9]} 46. Nc6 {[%clk 0:00:01.3]} 46... Rxc6 {[%clk 0:00:04.1]}
47. Kf4 {[%clk 0:00:01.4]} 47... Rc4 {[%clk 0:00:04.2]} 48. Ke5 {[%clk
0:00:01.9]} 48... Rxe4+ {[%clk 0:00:05.1]} 49. Kxe4 {[%clk 0:00:02.4]} 49... Kc6
{[%clk 0:00:05.8]} 50. Kd4 {[%clk 0:00:02.8]} 50... a5 {[%clk 0:00:06.4]} 51. g4
{[%clk 0:00:03.1]} 51... a4 {[%clk 0:00:06.8]} 52. g5 {[%clk 0:00:04]} 52... a3
{[%clk 0:00:07.2]} 53. Kc3 {[%clk 0:00:04.8]} 53... b4+ {[%clk 0:00:07.8]} 54.
Kb3 {[%clk 0:00:05.7]} 54... Kb5 {[%clk 0:00:08.1]} 55. h4 {[%clk 0:00:06.6]}
55... Kc5 {[%clk 0:00:08.7]} 56. h5 {[%clk 0:00:06.6]} 56... gxh5 {[%clk
0:00:09.6]} 0-1

[Event "Late-Titled-Tuesday-Blitz-March-26-2024"]
[Site "Chess.com"]
[Date "2024.03.26"]
[Round "2"]
[White "dcremisi"]
[Black "Sina_Movahed"]
[Result "0-1"]
[WhiteElo "2673"]
[BlackElo "3071"]
[TimeControl "180+1"]
[EndTime "14:19:39 PDT"]
[Termination "Sina_Movahed won by resignation"]

1. Nf3 {[%clk 0:03:00.9]} 1... Nf6 {[%clk 0:02:58.8]} 2. c4 {[%clk 0:03:00.7]}
2... g6 {[%clk 0:02:59.5]} 3. b3 {[%clk 0:03:00.1]} 3... Bg7 {[%clk 0:03:00]} 4.
Bb2 {[%clk 0:03:00.3]} 4... O-O {[%clk 0:03:00.6]} 5. g3 {[%clk 0:03:00.6]} 5...
d6 {[%clk 0:03:00.2]} 6. Bg2 {[%clk 0:03:00.7]} 6... e5 {[%clk 0:02:54.5]} 7. d3
{[%clk 0:02:59.2]} 7... Re8 {[%clk 0:02:52.9]} 8. O-O {[%clk 0:02:59.3]} 8...
Nbd7 {[%clk 0:02:53.4]} 9. Nbd2 {[%clk 0:02:59.3]} 9... c6 {[%clk 0:02:53.9]}
10. Qc2 {[%clk 0:02:56.8]} 10... h6 {[%clk 0:02:53.1]} 11. Ne4 {[%clk
0:02:49.9]} 11... Nxe4 {[%clk 0:02:41.3]} 12. dxe4 {[%clk 0:02:49.9]} 12... Nc5
{[%clk 0:02:39.3]} 13. Rfd1 {[%clk 0:02:47.8]} 13... Qc7 {[%clk 0:02:36.8]} 14.
Ne1 {[%clk 0:02:46.5]} 14... a5 {[%clk 0:02:33.5]} 15. Nd3 {[%clk 0:02:46.3]}
15... Ne6 {[%clk 0:02:33.3]} 16. c5 {[%clk 0:02:42.8]} 16... Nd4 {[%clk
0:02:24.3]} 17. Bxd4 {[%clk 0:02:33.6]} 17... exd4 {[%clk 0:02:25]} 18. cxd6
{[%clk 0:02:33.8]} 18... Qxd6 {[%clk 0:02:25.9]} 19. Rac1 {[%clk 0:02:22.6]}
19... h5 {[%clk 0:02:14.3]} 20. h4 {[%clk 0:02:11.6]} 20... Bh6 {[%clk
0:02:10.7]} 21. f4 {[%clk 0:02:10.5]} 21... a4 {[%clk 0:02:03.4]} 22. b4 {[%clk
0:02:07.8]} 22... Bf8 {[%clk 0:01:58.9]} 23. e5 {[%clk 0:02:00.9]} 23... Qe7
{[%clk 0:01:50.6]} 24. a3 {[%clk 0:01:55.2]} 24... Bf5 {[%clk 0:01:48.4]} 25.
Qc4 {[%clk 0:01:51.4]} 25... Red8 {[%clk 0:01:39.2]} 26. Nf2 {[%clk 0:01:40.6]}
26... Be6 {[%clk 0:01:34.9]} 27. Qd3 {[%clk 0:01:39.2]} 27... Bb3 {[%clk
0:01:26.7]} 28. Re1 {[%clk 0:01:35.8]} 28... Qd7 {[%clk 0:01:21]} 29. Ne4 {[%clk
0:01:35.3]} 29... Be7 {[%clk 0:01:21.1]} 30. Nc5 {[%clk 0:01:25.5]} 30... Bxc5
{[%clk 0:01:19.7]} 31. Rxc5 {[%clk 0:01:25.4]} 31... Qe7 {[%clk 0:01:20.3]} 32.
f5 {[%clk 0:01:21.7]} 32... Kh7 {[%clk 0:00:59.1]} 33. Rf1 {[%clk 0:01:20.6]}
33... Bd5 {[%clk 0:00:49.3]} 34. fxg6+ {[%clk 0:01:13.6]} 34... fxg6 {[%clk
0:00:48.1]} 35. Rf6 {[%clk 0:01:12.6]} 35... Bf7 {[%clk 0:00:40.2]} 36. Be4
{[%clk 0:01:05.2]} 36... Rg8 {[%clk 0:00:38.5]} 37. Qf3 {[%clk 0:01:03.5]} 37...
Kg7 {[%clk 0:00:25.1]} 38. b5 {[%clk 0:00:40]} 38... Raf8 {[%clk 0:00:22.5]} 39.
Rc1 {[%clk 0:00:28]} 39... cxb5 {[%clk 0:00:16.9]} 40. Qf4 {[%clk 0:00:28]}
40... Be8 {[%clk 0:00:15.1]} 41. Rf1 {[%clk 0:00:26.5]} 41... b4 {[%clk
0:00:15.1]} 42. Bd5 {[%clk 0:00:24.7]} 42... Rh8 {[%clk 0:00:15]} 43. axb4
{[%clk 0:00:18.6]} 43... a3 {[%clk 0:00:14.8]} 44. Qxd4 {[%clk 0:00:17.1]} 44...
Kh7 {[%clk 0:00:12.5]} 45. e6 {[%clk 0:00:12.4]} 45... Rxf6 {[%clk 0:00:11]} 46.
Rxf6 {[%clk 0:00:10.5]} 46... Rf8 {[%clk 0:00:09.7]} 47. Rxf8 {[%clk 0:00:10]}
47... Qxf8 {[%clk 0:00:10.6]} 48. Qe5 {[%clk 0:00:08.5]} 48... Qg7 {[%clk
0:00:08.4]} 49. Qb8 {[%clk 0:00:05.4]} 49... Bc6 {[%clk 0:00:08.2]} 50. Bxc6
{[%clk 0:00:04.9]} 50... a2 {[%clk 0:00:08.7]} 51. Qa8 {[%clk 0:00:05.8]} 51...
a1=Q+ {[%clk 0:00:08.9]} 52. Qxa1 {[%clk 0:00:05]} 52... Qxa1+ {[%clk
0:00:09.8]} 53. Kg2 {[%clk 0:00:05.9]} 53... bxc6 {[%clk 0:00:10.4]} 0-1